[Event "Early-Titled-Tuesday-Blitz-February-13-2024"]
[Site "Chess.com"]
[Date "2024.02.13"]
[Round "3"]
[White "Semetey"]
[Black "Seinw1"]
[Result "1/2-1/2"]
[WhiteElo "2652"]
[BlackElo "2480"]
[TimeControl "180+1"]
[EndTime "8:35:20 PST"]
[Termination "Game drawn by repetition"]

1. e4 {[%clk 0:02:49.4]} 1... e6 {[%clk 0:03:00]} 2. d3 {[%clk 0:02:48]} 2... d5
{[%clk 0:03:00.5]} 3. Nd2 {[%clk 0:02:48.5]} 3... Nf6 {[%clk 0:03:00.7]} 4. Ngf3
{[%clk 0:02:48.4]} 4... c5 {[%clk 0:02:58.8]} 5. g3 {[%clk 0:02:48.4]} 5... Nc6
{[%clk 0:02:59.1]} 6. Bg2 {[%clk 0:02:40.1]} 6... Be7 {[%clk 0:02:59.1]} 7. O-O
{[%clk 0:02:38.2]} 7... O-O {[%clk 0:02:59.2]} 8. Re1 {[%clk 0:02:37.6]} 8... b5
{[%clk 0:02:56.4]} 9. e5 {[%clk 0:02:31.3]} 9... Nd7 {[%clk 0:02:56]} 10. Nf1
{[%clk 0:02:31.6]} 10... Qc7 {[%clk 0:02:53.7]} 11. Bf4 {[%clk 0:02:30.5]} 11...
Bb7 {[%clk 0:02:52]} 12. h4 {[%clk 0:02:28.8]} 12... Rfc8 {[%clk 0:02:52.1]} 13.
h5 {[%clk 0:02:16.2]} 13... h6 {[%clk 0:02:50.2]} 14. N1h2 {[%clk 0:02:10.3]}
14... Qd8 {[%clk 0:02:49.8]} 15. Ng4 {[%clk 0:02:09.5]} 15... a5 {[%clk
0:02:49.9]} 16. Qd2 {[%clk 0:02:06.4]} 16... Bf8 {[%clk 0:02:49.9]} 17. Ngh2
{[%clk 0:01:36.7]} 17... Ra6 {[%clk 0:02:49]} 18. g4 {[%clk 0:01:36.8]} 18...
Be7 {[%clk 0:02:38.1]} 19. Nf1 {[%clk 0:00:45.2]} 19... a4 {[%clk 0:02:35.4]}
20. a3 {[%clk 0:00:44.8]} 20... Rb6 {[%clk 0:02:31.4]} 21. Ne3 {[%clk
0:00:36.7]} 21... Nd4 {[%clk 0:02:23.8]} 22. Rac1 {[%clk 0:00:31.2]} 22... b4
{[%clk 0:02:18.9]} 23. Nf1 {[%clk 0:00:18.5]} 23... bxa3 {[%clk 0:02:15.2]} 24.
bxa3 {[%clk 0:00:19.1]} 24... Rb2 {[%clk 0:02:10.6]} 25. N1h2 {[%clk 0:00:19.1]}
25... Qb6 {[%clk 0:02:05.4]} 26. g5 {[%clk 0:00:18.5]} 26... Nb3 {[%clk
0:02:04.4]} 27. Qc3 {[%clk 0:00:16]} 27... Nxc1 {[%clk 0:02:04.3]} 28. Bxc1
{[%clk 0:00:14.7]} 28... d4 {[%clk 0:02:03.2]} 29. Qd2 {[%clk 0:00:14]} 29...
hxg5 {[%clk 0:02:02.3]} 30. Bxb2 {[%clk 0:00:13.4]} 30... Qxb2 {[%clk
0:02:00.8]} 31. Nxg5 {[%clk 0:00:14.1]} 31... Qc3 {[%clk 0:02:00.3]} 32. Qxc3
{[%clk 0:00:12.4]} 32... dxc3 {[%clk 0:02:00.8]} 33. Bxb7 {[%clk 0:00:12.4]}
33... Rc7 {[%clk 0:02:01.1]} 34. Nxe6 {[%clk 0:00:10.9]} 34... Rxb7 {[%clk
0:01:58.7]} 35. Nf4 {[%clk 0:00:10]} 35... Rb2 {[%clk 0:01:57.3]} 36. Nd5 {[%clk
0:00:10.5]} 36... Bh4 {[%clk 0:01:55.9]} 37. Nf3 {[%clk 0:00:08.5]} 37... Bd8
{[%clk 0:01:56]} 38. Rc1 {[%clk 0:00:05.8]} 38... Ba5 {[%clk 0:01:53.8]} 39. Kf1
{[%clk 0:00:04.2]} 39... Nf8 {[%clk 0:01:53.9]} 40. Ng1 {[%clk 0:00:04.4]} 40...
Ne6 {[%clk 0:01:54.5]} 41. Ne2 {[%clk 0:00:04.9]} 41... Nd4 {[%clk 0:01:53.8]}
42. Nexc3 {[%clk 0:00:04.6]} 42... Rxc2 {[%clk 0:01:52]} 43. Rxc2 {[%clk
0:00:04.4]} 43... Nxc2 {[%clk 0:01:52.9]} 44. Nxa4 {[%clk 0:00:04.9]} 44... Nxa3
{[%clk 0:01:52.2]} 45. Nxc5 {[%clk 0:00:05.3]} 45... Nc2 {[%clk 0:01:52.8]} 46.
Nb7 {[%clk 0:00:04.7]} 46... Bd2 {[%clk 0:01:49.3]} 47. Ke2 {[%clk 0:00:05.2]}
47... Bh6 {[%clk 0:01:49.7]} 48. Kf3 {[%clk 0:00:05.4]} 48... Nd4+ {[%clk
0:01:50.1]} 49. Ke4 {[%clk 0:00:05.8]} 49... Ne6 {[%clk 0:01:49.5]} 50. f4
{[%clk 0:00:06.3]} 50... g6 {[%clk 0:01:49.3]} 51. d4 {[%clk 0:00:06.6]} 51...
gxh5 {[%clk 0:01:49]} 52. Nd6 {[%clk 0:00:06.3]} 52... h4 {[%clk 0:01:48.8]} 53.
Nf6+ {[%clk 0:00:06.9]} 53... Kf8 {[%clk 0:01:46.4]} 54. f5 {[%clk 0:00:06.6]}
54... Ng5+ {[%clk 0:01:44.8]} 55. Kd3 {[%clk 0:00:07]} 55... h3 {[%clk
0:01:44.4]} 56. Ng4 {[%clk 0:00:07.7]} 56... Nf3 {[%clk 0:01:40.9]} 57. Ne4
{[%clk 0:00:07.4]} 57... h2 {[%clk 0:01:38.4]} 58. Ng3 {[%clk 0:00:07.6]} 58...
Bf4 {[%clk 0:01:38.1]} 59. Nh1 {[%clk 0:00:08.3]} 59... Bg5 {[%clk 0:01:31.2]}
60. Ke4 {[%clk 0:00:08.9]} 60... Nd2+ {[%clk 0:01:31.2]} 61. Kd3 {[%clk
0:00:08.8]} 61... Nf3 {[%clk 0:01:30.9]} 62. Ke4 {[%clk 0:00:08.7]} 62... Nd2+
{[%clk 0:01:31.1]} 63. Kd5 {[%clk 0:00:09.2]} 63... Ke7 {[%clk 0:01:29.1]} 64.
Kc6 {[%clk 0:00:09.5]} 64... Nf3 {[%clk 0:01:24.7]} 65. d5 {[%clk 0:00:09.9]}
65... Nd4+ {[%clk 0:01:25.2]} 66. Kc7 {[%clk 0:00:09.8]} 66... Nxf5 {[%clk
0:01:26.1]} 67. d6+ {[%clk 0:00:09.5]} 67... Ke6 {[%clk 0:01:24.6]} 68. d7
{[%clk 0:00:08.9]} 68... Nd4 {[%clk 0:01:13.4]} 69. Nf6 {[%clk 0:00:07.2]} 69...
Kxe5 {[%clk 0:01:08.4]} 70. d8=Q {[%clk 0:00:06.6]} 70... Ne6+ {[%clk
0:01:08.6]} 71. Kd7 {[%clk 0:00:06.6]} 71... Nxd8 {[%clk 0:01:09.5]} 72. Ng4+
{[%clk 0:00:05.5]} 72... Kf4 {[%clk 0:01:09.1]} 73. Nxh2 {[%clk 0:00:05.8]}
73... Ne6 {[%clk 0:01:07.4]} 74. Kd6 {[%clk 0:00:04.5]} 74... Ke3 {[%clk
0:01:03.2]} 75. Ke5 {[%clk 0:00:04.6]} 75... Bf4+ {[%clk 0:01:03.2]} 76. Kf6
{[%clk 0:00:05]} 76... Bxh2 {[%clk 0:01:03.2]} 77. Kxf7 {[%clk 0:00:05.5]} 77...
Nd4 {[%clk 0:01:02.7]} 78. Kf6 {[%clk 0:00:04.1]} 78... Kf3 {[%clk 0:01:03]} 79.
Kg5 {[%clk 0:00:03.7]} 79... Kg2 {[%clk 0:01:03.3]} 80. Nf2 {[%clk 0:00:03.5]}
80... Kxf2 {[%clk 0:01:03.4]} 81. Kf6 {[%clk 0:00:03.7]} 81... Ke3 {[%clk
0:01:03.7]} 82. Ke7 {[%clk 0:00:04.1]} 82... Ke4 {[%clk 0:01:03.8]} 83. Kd7
{[%clk 0:00:04.6]} 83... Kd5 {[%clk 0:01:04.1]} 84. Kc8 {[%clk 0:00:05.1]} 84...
Kc6 {[%clk 0:01:00.5]} 85. Kd8 {[%clk 0:00:05.3]} 85... Be5 {[%clk 0:01:00.8]}
86. Kc8 {[%clk 0:00:05.5]} 86... Nb5 {[%clk 0:00:56.3]} 87. Kd8 {[%clk
0:00:05.9]} 87... Nc7 {[%clk 0:00:56.1]} 88. Kc8 {[%clk 0:00:06.2]} 88... Bd4
{[%clk 0:00:56.3]} 89. Kd8 {[%clk 0:00:06.4]} 89... Kd6 {[%clk 0:00:53.4]} 90.
Kc8 {[%clk 0:00:06.7]} 90... Ba7 {[%clk 0:00:53.9]} 91. Kd8 {[%clk 0:00:06.9]}
91... Na6 {[%clk 0:00:17.1]} 92. Kc8 {[%clk 0:00:07.8]} 92... Nc5 {[%clk
0:00:17.6]} 93. Kd8 {[%clk 0:00:08]} 93... Bb6+ {[%clk 0:00:06.7]} 94. Kc8
{[%clk 0:00:08.9]} 94... Kc6 {[%clk 0:00:06.8]} 95. Kb8 {[%clk 0:00:09]} 95...
Na6+ {[%clk 0:00:05.9]} 96. Kc8 {[%clk 0:00:09]} 96... Nc7 {[%clk 0:00:06.5]}
97. Kb8 {[%clk 0:00:09.2]} 97... Bc5 {[%clk 0:00:07]} 98. Kc8 {[%clk 0:00:09.6]}
98... Ba7 {[%clk 0:00:07.3]} 99. Kd8 {[%clk 0:00:10]} 99... Nd5 {[%clk
0:00:07.9]} 100. Kc8 {[%clk 0:00:10.3]} 100... Ne7+ {[%clk 0:00:08.3]} 101. Kd8
{[%clk 0:00:10.8]} 101... Kd6 {[%clk 0:00:08.8]} 102. Ke8 {[%clk 0:00:11]}
102... Ke6 {[%clk 0:00:06.7]} 103. Kd8 {[%clk 0:00:11.2]} 103... Bb6+ {[%clk
0:00:07.2]} 104. Ke8 {[%clk 0:00:11.7]} 104... Nf5 {[%clk 0:00:06.3]} 105. Kf8
{[%clk 0:00:11.7]} 105... Be3 {[%clk 0:00:06.2]} 106. Ke8 {[%clk 0:00:11.8]}
106... Bg5 {[%clk 0:00:06.9]} 107. Kf8 {[%clk 0:00:12.2]} 107... Ne3 {[%clk
0:00:06.1]} 108. Ke8 {[%clk 0:00:12.3]} 108... Nd5 {[%clk 0:00:06.7]} 109. Kf8
{[%clk 0:00:12.9]} 109... Nb6 {[%clk 0:00:04.9]} 110. Kg7 {[%clk 0:00:13]}
110... Kf5 {[%clk 0:00:05.1]} 111. Kf7 {[%clk 0:00:13.1]} 111... Nd7 {[%clk
0:00:05.4]} 112. Ke8 {[%clk 0:00:13.5]} 112... Ne5 {[%clk 0:00:06.1]} 113. Kf8
{[%clk 0:00:12.6]} 113... Ke6 {[%clk 0:00:06.2]} 114. Kg7 {[%clk 0:00:12.8]}
114... Ke7 {[%clk 0:00:06.7]} 115. Kg8 {[%clk 0:00:12.2]} 115... Ke8 {[%clk
0:00:06.8]} 116. Kg7 {[%clk 0:00:12.4]} 116... Ke7 {[%clk 0:00:06.7]} 117. Kg8
{[%clk 0:00:12.8]} 117... Ke8 {[%clk 0:00:02.7]} 118. Kg7 {[%clk 0:00:13.2]}
118... Ke7 {[%clk 0:00:02.3]} 1/2-1/2

[Event "Early-Titled-Tuesday-Blitz-February-13-2024"]
[Site "Chess.com"]
[Date "2024.02.13"]
[Round "4"]
[White "johnmez"]
[Black "ErikRonka"]
[Result "0-1"]
[WhiteElo "2289"]
[BlackElo "2518"]
[TimeControl "180+1"]
[EndTime "8:38:11 PST"]
[Termination "ErikRonka won by resignation"]

1. d4 {[%clk 0:03:00.9]} 1... d5 {[%clk 0:02:59.4]} 2. c4 {[%clk 0:03:01.4]}
2... c6 {[%clk 0:02:59.5]} 3. Nc3 {[%clk 0:03:01.7]} 3... Nf6 {[%clk 0:03:00]}
4. Nf3 {[%clk 0:03:02.1]} 4... e6 {[%clk 0:03:00.3]} 5. Bg5 {[%clk 0:03:02.3]}
5... dxc4 {[%clk 0:03:00.3]} 6. e4 {[%clk 0:03:01.5]} 6... b5 {[%clk 0:03:00.8]}
7. e5 {[%clk 0:03:01.5]} 7... h6 {[%clk 0:03:01.3]} 8. Bh4 {[%clk 0:03:00.5]}
8... g5 {[%clk 0:03:01.9]} 9. Nxg5 {[%clk 0:03:01.1]} 9... hxg5 {[%clk
0:03:02.8]} 10. Bxg5 {[%clk 0:03:01.7]} 10... Nbd7 {[%clk 0:03:03.5]} 11. g3
{[%clk 0:03:00.7]} 11... Qb6 {[%clk 0:03:03.9]} 12. exf6 {[%clk 0:02:59.8]}
12... Bb7 {[%clk 0:03:04.4]} 13. Bg2 {[%clk 0:02:59.2]} 13... O-O-O {[%clk
0:03:03.5]} 14. O-O {[%clk 0:02:59.1]} 14... c5 {[%clk 0:03:04.1]} 15. d5 {[%clk
0:02:57.8]} 15... b4 {[%clk 0:03:04.7]} 16. Na4 {[%clk 0:02:38.1]} 16... Qb5
{[%clk 0:03:02.7]} 17. dxe6 {[%clk 0:02:28.4]} 17... Bxg2 {[%clk 0:03:01]} 18.
Kxg2 {[%clk 0:02:07]} 18... Qc6+ {[%clk 0:03:00.7]} 19. Qf3 {[%clk 0:01:58.7]}
19... Rxh2+ {[%clk 0:02:59.9]} 20. Kxh2 {[%clk 0:01:55.2]} 20... Qxf3 {[%clk
0:03:00.8]} 21. exd7+ {[%clk 0:01:49.9]} 21... Kxd7 {[%clk 0:03:01.7]} 22. Nxc5+
{[%clk 0:01:26.7]} 22... Bxc5 {[%clk 0:02:58.8]} 0-1

[Event "Early-Titled-Tuesday-Blitz-February-13-2024"]
[Site "Chess.com"]
[Date "2024.02.13"]
[Round "4"]
[White "Polish_fighter3000"]
[Black "Bauman_Guy"]
[Result "1-0"]
[WhiteElo "3064"]
[BlackElo "2880"]
[TimeControl "180+1"]
[EndTime "8:38:30 PST"]
[Termination "Polish_fighter3000 won by resignation"]

1. e4 {[%clk 0:03:00.9]} 1... c5 {[%clk 0:02:59.9]} 2. Nf3 {[%clk 0:02:59.1]}
2... d6 {[%clk 0:03:00.5]} 3. d4 {[%clk 0:02:59.4]} 3... Nf6 {[%clk 0:03:00.9]}
4. Nc3 {[%clk 0:02:57.6]} 4... cxd4 {[%clk 0:03:01]} 5. Nxd4 {[%clk 0:02:58.5]}
5... a6 {[%clk 0:03:01.5]} 6. Bg5 {[%clk 0:02:57.9]} 6... Nbd7 {[%clk
0:03:01.3]} 7. Bc4 {[%clk 0:02:57.3]} 7... Qb6 {[%clk 0:03:01.3]} 8. Bb3 {[%clk
0:02:57.4]} 8... e6 {[%clk 0:03:01.3]} 9. Qd2 {[%clk 0:02:57.1]} 9... Be7 {[%clk
0:03:01.5]} 10. O-O-O {[%clk 0:02:56.6]} 10... Nc5 {[%clk 0:03:02.2]} 11. Qe2
{[%clk 0:02:57.2]} 11... Qc7 {[%clk 0:02:58.6]} 12. f4 {[%clk 0:02:50.3]} 12...
h6 {[%clk 0:02:55.3]} 13. Bh4 {[%clk 0:02:46.9]} 13... Nfxe4 {[%clk 0:02:30.2]}
14. Nxe4 {[%clk 0:02:47.8]} 14... Bxh4 {[%clk 0:02:30]} 15. Nf5 {[%clk
0:02:43.3]} 15... Nxe4 {[%clk 0:02:16.9]} 16. Qxe4 {[%clk 0:02:44.2]} 16... Bf6
{[%clk 0:02:06.5]} 17. Nxd6+ {[%clk 0:02:42.4]} 17... Kf8 {[%clk 0:02:06.7]} 18.
Rhe1 {[%clk 0:02:41.5]} 18... g6 {[%clk 0:01:58.1]} 19. g4 {[%clk 0:02:37]}
19... Bd7 {[%clk 0:01:40.8]} 20. Nxf7 {[%clk 0:02:32.8]} 1-0

[Event "Early-Titled-Tuesday-Blitz-February-13-2024"]
[Site "Chess.com"]
[Date "2024.02.13"]
[Round "4"]
[White "RaugintaBulba"]
[Black "Alblooshi_Hamad"]
[Result "1-0"]
[WhiteElo "2425"]
[BlackElo "2218"]
[TimeControl "180+1"]
[EndTime "8:38:48 PST"]
[Termination "RaugintaBulba won by resignation"]

1. b3 {[%clk 0:03:00.9]} 1... Nf6 {[%clk 0:02:57.1]} 2. Bb2 {[%clk 0:03:01.5]}
2... c5 {[%clk 0:02:56.7]} 3. e3 {[%clk 0:03:00.5]} 3... Nc6 {[%clk 0:02:56.5]}
4. g4 {[%clk 0:02:59.9]} 4... e6 {[%clk 0:02:52.3]} 5. g5 {[%clk 0:02:59.6]}
5... Nd5 {[%clk 0:02:52.7]} 6. h4 {[%clk 0:02:59.6]} 6... d6 {[%clk 0:02:49.7]}
7. Bg2 {[%clk 0:03:00]} 7... Nb6 {[%clk 0:02:49.3]} 8. Ne2 {[%clk 0:02:55.8]}
8... e5 {[%clk 0:02:49.6]} 9. Na3 {[%clk 0:02:50]} 9... Be6 {[%clk 0:02:48.9]}
10. f4 {[%clk 0:02:44.3]} 10... Be7 {[%clk 0:02:44.6]} 11. O-O {[%clk
0:02:42.5]} 11... Qc7 {[%clk 0:02:40.4]} 12. f5 {[%clk 0:02:40.5]} 12... Bd5
{[%clk 0:02:37.4]} 13. e4 {[%clk 0:02:40.1]} 13... Bxe4 {[%clk 0:02:23.5]} 14.
Bxe4 {[%clk 0:02:41]} 14... O-O-O {[%clk 0:02:24]} 15. c4 {[%clk 0:02:31.7]}
15... a6 {[%clk 0:02:23.7]} 16. Nc2 {[%clk 0:02:29.8]} 16... d5 {[%clk 0:02:23]}
17. cxd5 {[%clk 0:02:28.8]} 17... Nxd5 {[%clk 0:02:23.6]} 18. Ne3 {[%clk
0:02:24.6]} 18... Nb6 {[%clk 0:02:12.7]} 19. a4 {[%clk 0:02:19.1]} 19... Nd4
{[%clk 0:02:12.4]} 20. a5 {[%clk 0:02:13.4]} 20... Na8 {[%clk 0:01:57.1]} 21.
Nd5 {[%clk 0:02:11.3]} 21... Qd7 {[%clk 0:01:57.5]} 22. Nxd4 {[%clk 0:02:06.1]}
22... exd4 {[%clk 0:01:56.6]} 23. f6 {[%clk 0:02:03.2]} 23... gxf6 {[%clk
0:01:56.2]} 24. Bf5 {[%clk 0:02:02.7]} 1-0

[Event "Early-Titled-Tuesday-Blitz-February-13-2024"]
[Site "Chess.com"]
[Date "2024.02.13"]
[Round "4"]
[White "Canal_Showdrez"]
[Black "HeroWilczek"]
[Result "0-1"]
[WhiteElo "2080"]
[BlackElo "2474"]
[TimeControl "180+1"]
[EndTime "8:38:58 PST"]
[Termination "HeroWilczek won by resignation"]

1. d4 {[%clk 0:02:50.8]} 1... Nf6 {[%clk 0:02:59.2]} 2. Nf3 {[%clk 0:02:49]}
2... e6 {[%clk 0:02:58.8]} 3. e3 {[%clk 0:02:49.6]} 3... b6 {[%clk 0:02:57.8]}
4. Bd3 {[%clk 0:02:50.1]} 4... Bb7 {[%clk 0:02:58.4]} 5. Nbd2 {[%clk 0:02:49.1]}
5... Be7 {[%clk 0:02:57]} 6. b3 {[%clk 0:02:49.6]} 6... O-O {[%clk 0:02:56.8]}
7. Bb2 {[%clk 0:02:50.2]} 7... d6 {[%clk 0:02:57.2]} 8. O-O {[%clk 0:02:50.4]}
8... Nbd7 {[%clk 0:02:57.9]} 9. e4 {[%clk 0:02:48.3]} 9... c5 {[%clk 0:02:57.5]}
10. c3 {[%clk 0:02:44.1]} 10... Re8 {[%clk 0:02:50.4]} 11. e5 {[%clk 0:02:41.2]}
11... Nd5 {[%clk 0:02:43]} 12. exd6 {[%clk 0:02:22.1]} 12... Bxd6 {[%clk
0:02:41.6]} 13. Ne4 {[%clk 0:02:15.9]} 13... Bc7 {[%clk 0:02:30.6]} 14. Nfg5
{[%clk 0:02:10.5]} 14... h6 {[%clk 0:02:27.1]} 15. Nxf7 {[%clk 0:02:09.1]} 15...
Kxf7 {[%clk 0:02:21]} 16. Qh5+ {[%clk 0:02:08.8]} 16... Kg8 {[%clk 0:02:15.3]}
17. dxc5 {[%clk 0:02:08.6]} 17... Nf4 {[%clk 0:02:10.3]} 18. Qd1 {[%clk
0:01:51.6]} 18... Nxd3 {[%clk 0:02:08.9]} 19. Qxd3 {[%clk 0:01:52.5]} 19... Nxc5
{[%clk 0:02:05.9]} 20. Nxc5 {[%clk 0:01:52.1]} 20... bxc5 {[%clk 0:02:05.4]} 21.
Qh3 {[%clk 0:01:47.1]} 21... Qf6 {[%clk 0:01:57.8]} 22. c4 {[%clk 0:01:47]}
22... Qxb2 {[%clk 0:01:57.1]} 0-1

[Event "Early-Titled-Tuesday-Blitz-February-13-2024"]
[Site "Chess.com"]
[Date "2024.02.13"]
[Round "4"]
[White "Trendle"]
[Black "The_Straightforward_Rook"]
[Result "1-0"]
[WhiteElo "2619"]
[BlackElo "2416"]
[TimeControl "180+1"]
[EndTime "8:39:12 PST"]
[Termination "Trendle won by resignation"]

1. f4 {[%clk 0:02:53.1]} 1... d5 {[%clk 0:02:56.1]} 2. Nf3 {[%clk 0:02:52.7]}
2... Bg4 {[%clk 0:02:56]} 3. e3 {[%clk 0:02:49]} 3... Nc6 {[%clk 0:02:54.6]} 4.
d4 {[%clk 0:02:44]} 4... e6 {[%clk 0:02:51.6]} 5. Bd3 {[%clk 0:02:38.1]} 5...
Bd6 {[%clk 0:02:43.2]} 6. O-O {[%clk 0:02:37.7]} 6... Nge7 {[%clk 0:02:42.4]} 7.
c4 {[%clk 0:02:36.3]} 7... dxc4 {[%clk 0:02:38.8]} 8. Bxc4 {[%clk 0:02:37.2]}
8... Nf5 {[%clk 0:02:28]} 9. Nc3 {[%clk 0:02:31.5]} 9... g5 {[%clk 0:02:22.4]}
10. fxg5 {[%clk 0:02:21.8]} 10... h6 {[%clk 0:02:22.6]} 11. g6 {[%clk 0:02:21]}
11... fxg6 {[%clk 0:02:15.7]} 12. Bxe6 {[%clk 0:02:21]} 12... Bxh2+ {[%clk
0:02:11.3]} 13. Kxh2 {[%clk 0:02:12.7]} 13... Qd6+ {[%clk 0:02:11.6]} 14. Kg1
{[%clk 0:02:12.8]} 14... Qxe6 {[%clk 0:02:08.2]} 15. d5 {[%clk 0:02:11.5]} 15...
Nxe3 {[%clk 0:01:32.6]} 16. dxe6 {[%clk 0:02:09.5]} 16... Nxd1 {[%clk 0:01:32]}
17. Rxd1 {[%clk 0:02:07.9]} 17... Bxe6 {[%clk 0:01:27.3]} 18. Nb5 {[%clk
0:01:54.1]} 18... Rc8 {[%clk 0:01:23.3]} 19. Bf4 {[%clk 0:01:53.7]} 1-0

[Event "Early-Titled-Tuesday-Blitz-February-13-2024"]
[Site "Chess.com"]
[Date "2024.02.13"]
[Round "4"]
[White "DreamsAreFake"]
[Black "colegiodemadrid"]
[Result "0-1"]
[WhiteElo "2719"]
[BlackElo "2539"]
[TimeControl "180+1"]
[EndTime "8:39:16 PST"]
[Termination "colegiodemadrid won by resignation"]

1. Nf3 {[%clk 0:02:52.1]} 1... d5 {[%clk 0:02:55]} 2. g3 {[%clk 0:02:52.6]} 2...
Nc6 {[%clk 0:02:53.8]} 3. Bg2 {[%clk 0:02:53.3]} 3... e5 {[%clk 0:02:53.6]} 4.
d3 {[%clk 0:02:53.2]} 4... Bg4 {[%clk 0:02:48.7]} 5. O-O {[%clk 0:02:46.9]} 5...
Qd7 {[%clk 0:02:48.8]} 6. e4 {[%clk 0:02:43.5]} 6... dxe4 {[%clk 0:02:42]} 7.
dxe4 {[%clk 0:02:44.4]} 7... Qxd1 {[%clk 0:02:40.8]} 8. Rxd1 {[%clk 0:02:45.3]}
8... Nd4 {[%clk 0:02:31.3]} 9. Rxd4 {[%clk 0:02:44.2]} 9... exd4 {[%clk
0:02:30.6]} 10. Nxd4 {[%clk 0:02:44]} 10... O-O-O {[%clk 0:02:31.1]} 11. c3
{[%clk 0:02:27.7]} 11... c5 {[%clk 0:02:28.9]} 12. f3 {[%clk 0:02:26.8]} 12...
cxd4 {[%clk 0:02:12.7]} 13. fxg4 {[%clk 0:02:26.9]} 13... Bc5 {[%clk 0:02:08.6]}
14. Kf1 {[%clk 0:02:22.2]} 14... Nf6 {[%clk 0:02:05]} 15. h3 {[%clk 0:02:20]}
15... Rhe8 {[%clk 0:02:04]} 16. Nd2 {[%clk 0:02:19.4]} 16... dxc3 {[%clk
0:02:04.2]} 17. bxc3 {[%clk 0:02:20]} 17... Be3 {[%clk 0:02:04.1]} 18. Nc4
{[%clk 0:02:18.7]} 18... Bxc1 {[%clk 0:02:04.5]} 19. Rxc1 {[%clk 0:02:19.6]}
19... Nxe4 {[%clk 0:02:04]} 20. Kg1 {[%clk 0:02:16.3]} 20... Nxg3 {[%clk
0:02:01.4]} 21. Rb1 {[%clk 0:02:16]} 21... b6 {[%clk 0:01:59.3]} 22. Kh2 {[%clk
0:02:13.9]} 22... Ne4 {[%clk 0:01:55.9]} 23. Rc1 {[%clk 0:02:11.5]} 23... Nc5
{[%clk 0:01:54.9]} 24. Rc2 {[%clk 0:02:06]} 24... Rd3 {[%clk 0:01:53.1]} 25. a4
{[%clk 0:02:00.7]} 25... Kc7 {[%clk 0:01:51.2]} 26. a5 {[%clk 0:01:59.9]} 26...
b5 {[%clk 0:01:50.5]} 27. Nb2 {[%clk 0:01:54.5]} 27... Rde3 {[%clk 0:01:49.7]}
28. Nd1 {[%clk 0:01:53]} 28... Re2 {[%clk 0:01:49.7]} 29. Rc1 {[%clk 0:01:53.5]}
29... Nd3 {[%clk 0:01:49.6]} 0-1

[Event "Early-Titled-Tuesday-Blitz-February-13-2024"]
[Site "Chess.com"]
[Date "2024.02.13"]
[Round "4"]
[White "Sl4werThanYou"]
[Black "UnTucopalaTimba"]
[Result "1-0"]
[WhiteElo "2646"]
[BlackElo "1986"]
[TimeControl "180+1"]
[EndTime "8:39:18 PST"]
[Termination "Sl4werThanYou won by resignation"]

1. d4 {[%clk 0:03:00.2]} 1... Nf6 {[%clk 0:02:59.2]} 2. c4 {[%clk 0:02:59.1]}
2... e6 {[%clk 0:02:59.2]} 3. Bf4 {[%clk 0:02:55.8]} 3... Bb4+ {[%clk
0:02:51.6]} 4. Nd2 {[%clk 0:02:55]} 4... d5 {[%clk 0:02:49.5]} 5. a3 {[%clk
0:02:52.1]} 5... Bxd2+ {[%clk 0:02:48.4]} 6. Bxd2 {[%clk 0:02:53]} 6... dxc4
{[%clk 0:02:48.6]} 7. e3 {[%clk 0:02:52.9]} 7... b5 {[%clk 0:02:48.1]} 8. a4
{[%clk 0:02:47.7]} 8... c6 {[%clk 0:02:47]} 9. b3 {[%clk 0:02:41.4]} 9... cxb3
{[%clk 0:02:42.8]} 10. axb5 {[%clk 0:02:38.2]} 10... O-O {[%clk 0:02:41.1]} 11.
Qxb3 {[%clk 0:02:34]} 11... Qb6 {[%clk 0:02:38.5]} 12. Nf3 {[%clk 0:02:28.6]}
12... Nbd7 {[%clk 0:02:34]} 13. Qa4 {[%clk 0:02:21.7]} 13... cxb5 {[%clk
0:02:28.2]} 14. Bxb5 {[%clk 0:02:22.6]} 14... a6 {[%clk 0:02:22.3]} 15. O-O
{[%clk 0:02:18]} 15... Nb8 {[%clk 0:02:06.8]} 16. Bb4 {[%clk 0:02:13.6]} 16...
Rd8 {[%clk 0:01:54.6]} 17. Ba5 {[%clk 0:02:04.3]} 17... axb5 {[%clk 0:01:53.5]}
18. Bxb6 {[%clk 0:01:57.1]} 18... Rxa4 {[%clk 0:01:49.8]} 19. Bxd8 {[%clk
0:01:53]} 19... Rxa1 {[%clk 0:01:49.4]} 20. Rxa1 {[%clk 0:01:51.3]} 20... Bb7
{[%clk 0:01:47.7]} 21. Ra7 {[%clk 0:01:49.7]} 21... Bxf3 {[%clk 0:01:45.6]} 22.
gxf3 {[%clk 0:01:45.5]} 22... Kf8 {[%clk 0:01:39.5]} 23. Bxf6 {[%clk 0:01:44.9]}
23... gxf6 {[%clk 0:01:39.6]} 24. Ra8 {[%clk 0:01:45.5]} 1-0

[Event "Early-Titled-Tuesday-Blitz-February-13-2024"]
[Site "Chess.com"]
[Date "2024.02.13"]
[Round "4"]
[White "Bilan_Danila"]
[Black "Happy1712Drummer"]
[Result "1-0"]
[WhiteElo "2559"]
[BlackElo "2388"]
[TimeControl "180+1"]
[EndTime "8:39:46 PST"]
[Termination "Bilan_Danila won by resignation"]

1. d4 {[%clk 0:03:00.9]} 1... d5 {[%clk 0:02:55.9]} 2. Nf3 {[%clk 0:03:01.1]}
2... e6 {[%clk 0:02:55.6]} 3. c4 {[%clk 0:03:00.1]} 3... a6 {[%clk 0:02:55.9]}
4. cxd5 {[%clk 0:02:58.8]} 4... exd5 {[%clk 0:02:56.8]} 5. Nc3 {[%clk
0:02:59.7]} 5... Nf6 {[%clk 0:02:55.4]} 6. Bg5 {[%clk 0:02:59.4]} 6... Be6
{[%clk 0:02:50.5]} 7. e3 {[%clk 0:02:59.3]} 7... Bd6 {[%clk 0:02:49.8]} 8. Ne5
{[%clk 0:02:56.4]} 8... c6 {[%clk 0:02:44]} 9. Bd3 {[%clk 0:02:53.9]} 9... Nbd7
{[%clk 0:02:44.1]} 10. f4 {[%clk 0:02:53.8]} 10... Qc7 {[%clk 0:02:30.3]} 11. f5
{[%clk 0:02:32.4]} 11... Bxe5 {[%clk 0:02:16.3]} 12. dxe5 {[%clk 0:02:29.7]}
12... Qxe5 {[%clk 0:01:18.3]} 13. Bf4 {[%clk 0:02:24.8]} 1-0